fUST/lending_fUST_20260323
["ID","MTS","AMOUNT","RATE_DAILY","PERIOD"]
[408757862,1774200641078,-159.05836497,0.00015805,14]
[408757864,1774200641087,-168.62394622,0.00015805,14]
[408757866,1774200641097,-152.71290902,0.00015805,14]
[408757868,1774200641105,-578.20924308,0.00015833,2]
[408757870,1774200641115,-2312.83697232,0.00015833,2]
[408757872,1774200641123,-500.0,0.00015934,2]
[408757874,1774200641133,-166.7459012,0.00015983,14]
[408757876,1774200641142,-500.0,0.00016138,2]
[408757878,1774200641151,-500.0,0.00016208,2]
[408757880,1774200641161,-599.60298507,0.00016381,2]
[408757882,1774200641170,-2398.4119403,0.00016381,2]
[408757884,1774200641179,-369.5351896,0.00016414,2]
[408757886,1774200641188,-151.0,0.00016438,2]
[408757888,1774200641197,-151.0,0.00016438,2]
[408757890,1774200641205,-151.0,0.00016438,2]
[408757892,1774200641214,-151.0,0.00016438,2]
[408757894,1774200641224,-151.0,0.00016438,2]
[408757896,1774200641233,-151.0,0.00016438,2]
[408757898,1774200641242,-151.0,0.00016438,2]
[408757900,1774200641251,-151.0,0.00016438,2]
[408757902,1774200641260,-151.0,0.00016438,2]
[408757904,1774200641270,-151.0,0.00016438,2]
[408757906,1774200641278,-151.0,0.00016438,2]
[408757908,1774200641287,-151.0,0.00016438,2]
[408757909,1774200641297,-151.0,0.00016438,2]
[408757911,1774200641305,-151.0,0.00016438,2]
[408757913,1774200641314,-151.0,0.00016438,2]
[408757915,1774200641324,-152.452428,0.00016438,2]
[408757917,1774200641333,-500.0,0.00016482,2]
[408757919,1774200641342,-166.0,0.00016578,2]
[408757921,1774200641351,-166.0,0.00016578,2]
[408757923,1774200641360,-269.78783127,0.00016578,2]
[408757925,1774200641370,-267.5529772,0.00016578,2]
[408757927,1774200641379,-720.0,0.00016796,2]
[408757929,1774200641389,-621.78829552,0.00016929,2]
[408757931,1774200641398,-2487.15318209,0.00016929,2]
[408757933,1774200641407,-500.0,0.00016988,2]
[408757935,1774200641416,-167.72324631,0.00017179,30]
[408757937,1774200641425,-500.0,0.000172,2]
[408757939,1774200641434,-500.0,0.000172,2]
[408757941,1774200641446,-500.35878526,0.000172,2]
[408757943,1774200641468,-500.0,0.000172,2]
[408757945,1774200641482,-160.08580766,0.000172,2]
[408757947,1774200641491,-500.0,0.000172,2]
[408757949,1774200641499,-500.68922034,0.000172,2]
[408757951,1774200641508,-500.0,0.000172,2]
[408757953,1774200641518,-156.25396965,0.000172,2]
[408757955,1774200641528,-500.0,0.000172,2]
[408757957,1774200641537,-500.0,0.000172,2]
[408757959,1774200641546,-500.0,0.000172,2]
[408757961,1774200641555,-500.0,0.000172,2]
[408757963,1774200641564,-500.0,0.000172,2]
[408757965,1774200641573,-788.0,0.000173,2]
[408757967,1774200641581,-303.95049177,0.00017477,2]
[408757969,1774200641590,-2579.17784983,0.00017477,2]
[408757971,1774200641599,-151.0257013,0.00017707,2]
[408757973,1774200641608,-159.05836497,0.0001774,30]
[408757975,1774200641617,-168.62394622,0.0001774,14]
[408757977,1774200641626,-152.71290902,0.0001774,30]
[408757978,1774200641635,-1000.0,0.00017748,2]
[408757980,1774200641644,-1000.0,0.00017748,2]
[408757983,1774200641655,-623.88245714,0.00017748,2]
[408757984,1774200641664,-1000.35287432,0.00017748,2]
[408757986,1774200641674,-1000.0,0.00017748,2]
[408757988,1774200641683,-500.0,0.00017748,2]
[408757990,1774200641693,-1000.0,0.00017748,2]
[408757992,1774200641702,-802.51638282,0.00017748,2]
[408757994,1774200641711,-211.27363192,0.0001779,2]
[408757996,1774200641720,-189.33362833,0.00017837,2]
[408757998,1774200641729,-166.7459012,0.00017977,30]
[408758000,1774200641738,-2674.60743027,0.00018025,2]
[408758002,1774200641747,-500.0,0.00018069,5]
[408758004,1774200641756,-1500.0,0.00018296,2]
[408758006,1774200641765,-1500.0,0.00018296,2]
[408758008,1774200641777,-864.0,0.00018475,2]
[408758010,1774200641786,-2773.56790519,0.00018573,2]
[408758012,1774200641796,-2000.0,0.00018844,2]
[408758014,1774200641805,-151.0,0.00019,2]
[408758016,1774200641814,-2876.18991768,0.00019121,2]
[408758018,1774200641823,-2500.0,0.00019392,2]
[408758020,1774200641836,-150.0,0.00019522,2]
[408758022,1774200641845,-255.61727366,0.0001953,2]
[408758024,1774200641854,-167.72324631,0.00019572,60]
[408758026,1774200641863,-150.0,0.00019589,2]
[408758028,1774200641872,-641.0,0.00019616,2]
[408758030,1774200641881,-1398.0,0.00019616,2]
[408758032,1774200641890,-2191.0,0.00019616,2]
[408758034,1774200641899,-2982.60894464,0.00019669,2]
[408758036,1774200641909,-159.05836497,0.00019674,60]
[408758038,1774200641918,-168.62394622,0.00019674,30]
[408758040,1774200641927,-152.71290902,0.00019674,60]
[408758042,1774200641936,-3000.0,0.0001994,2]
[408758044,1774200641945,-166.7459012,0.00019971,30]
[408758046,1774200641954,-323.0,0.0002,3]
[408758048,1774200641963,-1990.0,0.0002,2]
[408758050,1774200641972,-923803.22282826,0.0002,2]
[408758096,1774200642433,-435063.78848364,0.0002,2]
[408758099,1774200642443,-151.0,0.000201,4]
[408758100,1774200642452,-3092.96547559,0.00020217,2]
[408758102,1774200642461,-1000.0,0.00020323,2]
[408758104,1774200642471,-638.92,0.00020323,2]
[408758106,1774200642482,-638.92,0.00020323,2]
[408758107,1774200642491,-638.92,0.00020323,2]
[408758108,1774200642501,-638.92,0.00020323,2]
[408758109,1774200642511,-638.92,0.00020323,2]
[408758111,1774200642520,-638.92,0.00020323,2]
[408758112,1774200642529,-638.92,0.00020323,2]
[408758114,1774200642539,-1551.68795867,0.00020488,2]
[408758115,1774200642548,-1137.0,0.00020681,10]
[408758116,1774200642558,-3207.40519818,0.00020765,2]
[408758119,1774200642568,-242.77,0.00020835,2]
[408758122,1774200642577,-168.85003647,0.00021,10]
[408758126,1774200642588,-300.0,0.00021,7]
[408758128,1774200642598,-19248.0,0.000211,90]
[408758130,1774200642609,-151.0,0.000211,4]
[408758131,1774200642618,-151.0,0.00021159,2]
[408758134,1774200642628,-166.74590118,0.00021325,60]
[408758135,1774200642638,-159.05836493,0.00021375,120]
[408758136,1774200642647,-168.62394619,0.00021375,60]
[408758137,1774200642660,-152.71290898,0.00021375,120]
[408758138,1774200642671,-159.05836497,0.00021609,60]
[408758139,1774200642681,-168.62394622,0.00021609,30]
[408758141,1774200642695,-152.71290902,0.00021609,60]
[408758142,1774200642705,-27839.77433775,0.0002185,3]
[408758144,1774200642714,-151.0,0.00021918,2]
[408758145,1774200642724,-151.0,0.00021918,2]
[408758147,1774200642735,-151.0,0.00021918,2]
[408758148,1774200642744,-151.0,0.00021918,2]
[408758150,1774200642754,-151.0,0.00021918,2]
[408758151,1774200642763,-151.0,0.00021918,2]
[408758153,1774200642773,-151.0,0.00021918,2]
[408758154,1774200642781,-151.0,0.00021918,2]
[408758156,1774200642791,-151.0,0.00021918,2]
[408758157,1774200642800,-151.0,0.00021918,2]
[408758159,1774200642809,-151.0,0.00021918,2]
[408758160,1774200642818,-151.0,0.00021918,2]
[408758162,1774200642827,-151.0,0.00021918,2]
[408758163,1774200642836,-151.0,0.00021918,2]
[408758164,1774200642846,-151.0,0.00021918,2]
[408758166,1774200642856,-151.0,0.00021918,2]
[408758167,1774200642866,-151.0,0.00021918,2]
[408758169,1774200642875,-151.0,0.00021918,2]
[408758170,1774200642885,-197.258003,0.00021918,2]
[408758172,1774200642894,-348.735422,0.00021918,2]
[408758174,1774200642904,-348.735422,0.00021918,2]
[408758175,1774200642914,-348.735422,0.00021918,2]
[408758177,1774200642923,-348.735422,0.00021918,2]
[408758178,1774200642932,-348.735422,0.00021918,2]
[408758180,1774200642942,-348.735422,0.00021918,2]
[408758181,1774200642951,-348.735422,0.00021918,2]
[408758183,1774200642962,-348.735422,0.00021918,2]
[408758184,1774200642972,-348.735422,0.00021918,2]
[408758186,1774200642981,-348.735422,0.00021918,2]
[408758187,1774200642990,-348.735422,0.00021918,2]
[408758189,1774200643000,-348.735422,0.00021918,2]
[408758190,1774200643009,-348.735422,0.00021918,2]
[408758192,1774200643019,-348.735422,0.00021918,2]
[408758194,1774200643028,-348.735422,0.00021918,2]
[408758195,1774200643038,-348.735422,0.00021918,2]
[408758197,1774200643046,-348.735422,0.00021918,2]
[408758198,1774200643056,-348.735422,0.00021918,2]
[408758200,1774200643065,-348.735422,0.00021918,2]
[408758201,1774200643074,-348.73542908,0.00021918,2]
[408758203,1774200643083,-206.0380112,0.00021965,120]
[408758204,1774200643094,-167.72324631,0.00021965,120]
[408758207,1774200643103,-151.0,0.000221,8]
[408758208,1774200643111,-182.08,0.0002224,2]
[408758210,1774200643120,-1000.0,0.00022355,10]
[408758212,1774200643129,-244.0,0.00022355,10]
[408758213,1774200643138,-1256.807,0.00022413,2]
[408758215,1774200643147,-185.843,0.00022413,2]
[408758216,1774200643156,-1094.53510113,0.00022421,2]
[408758218,1774200643165,-1030.82711135,0.0002254,2]
[408758220,1774200643174,-641.0,0.00022616,2]
[408758221,1774200643183,-1394.0,0.00022616,2]
[408758223,1774200643193,-2187.0,0.00022616,2]
[408758224,1774200643202,-200.0,0.0002272,2]
[408758226,1774200643211,-1038.13780852,0.00022943,120]
[408758228,1774200643220,-4607.28216968,0.00023,2]
[408758229,1774200643229,-797.26672595,0.00023,2]
[408758231,1774200643238,-1069.62593242,0.00023,2]
[408758233,1774200643250,-270.83333333,0.00023,3]
[408758234,1774200643259,-168.83462024,0.00023042,2]
[408758236,1774200643269,-151.0,0.000232,7]
[408758237,1774200643279,-449.0,0.00023321,10]
[408758239,1774200643289,-500.0,0.00023396,9]
[408758240,1774200643298,-1900.0,0.000234,3]
[408758242,1774200643308,-1038.13780852,0.00023423,120]
[408758243,1774200643317,-1264.94314,0.000235,120]
[408758244,1774200643327,-500.0,0.000236,9]
[408758246,1774200643336,-154.6780137,0.0002363,2]
[408758247,1774200643346,-2000.0,0.000237,4]
[408758249,1774200643355,-11826.1419511,0.00023898,2]
[408758250,1774200643364,-2315.0,0.000239,2]
[408758252,1774200643373,-203.87957048,0.00023902,120]
[408758253,1774200643382,-38000.0,0.0002393,7]
[408758254,1774200643391,-26497.40838979,0.00023938,7]
[408760076,1774200681421,-1158.8137117,9.9e-05,2]
[408760077,1774200735262,151.0,6.2e-05,120]
[408760097,1774201831955,-4229.4035922,0.00010846,2]
[408760154,1774201838106,-770.5964078,0.00010846,2]
[408760155,1774201838115,-300.0,0.00010956,2]
[408760156,1774201838125,-1200.0,0.00010956,2]
[408760157,1774201838134,-300.0,0.00010957,2]
[408760158,1774201838143,-300.0,0.00010957,2]
[408760159,1774201838152,-879.44169173,0.00010958,2]
[408760161,1774201840629,-320.55830827,0.00010958,2]
[408760162,1774201840638,-1200.0,0.00010958,2]
[408760163,1774201840647,-1200.0,0.00010958,2]
[408760164,1774201840657,-645.54169173,0.00010958,2]
[408760165,1774201840682,-554.45830827,0.00010958,2]
[408760166,1774201840691,-570.88758276,0.00010958,2]
[408760193,1774201843378,-629.11241724,0.00010958,2]
[408760194,1774201843388,-1200.0,0.00010958,2]
[408760195,1774201843397,-170.88758276,0.00010958,2]
[408760196,1774201843408,-509.70296336,0.00010958,2]
[408760198,1774201846163,-519.40945388,0.00010958,2]
[408760199,1774201846172,-1200.0,0.00010958,2]
[408760200,1774201846182,-1200.0,0.00010958,2]
[408760201,1774201846191,-1200.0,0.00010958,2]
[408760202,1774201846200,-1032.94054601,0.00010958,2]
[408760249,1774203038256,-4139.67013678,0.00010215,2]
[408760250,1774203038268,-860.32986322,0.00010215,2]
[408760251,1774203038278,-1200.0,0.00010958,2]
[408760252,1774203038287,-1200.0,0.00010958,2]
[408760253,1774203038296,-1200.0,0.00010958,2]
[408760254,1774203038305,-176.81778183,0.00010958,2]
[408760255,1774203038314,-2241.6837227,0.00010959,2]
[408760256,1774203038324,-15380.3736,0.00010987,2]
[408760257,1774203038338,-185.844,0.00010987,2]
[408760258,1774203038347,-1005.446,0.00010987,2]
[408760259,1774203038355,-10146.4057959,0.00011096,2]
[408760260,1774203038365,-300.0,0.00011176,2]
[408760261,1774203038375,-300.0,0.00011176,2]
[408760262,1774203038384,-300.0,0.00011176,2]
[408760264,1774203038393,-300.0,0.00011176,2]
[408760267,1774203038404,-300.0,0.00011176,2]
[408760268,1774203038413,-300.0,0.00011176,2]
[408760270,1774203038423,-300.0,0.00011176,2]
[408760272,1774203038433,-300.0,0.00011176,2]
[408760274,1774203038442,-300.0,0.00011176,2]
[408760276,1774203038451,-300.0,0.00011176,2]
[408760278,1774203038460,-300.0,0.00011176,2]
[408760280,1774203038470,-300.0,0.00011176,2]
[408760282,1774203038479,-300.0,0.00011176,2]
[408760284,1774203038488,-300.0,0.00011176,2]
[408760286,1774203038497,-300.0,0.00011176,2]
[408760288,1774203038506,-600.0,0.00011176,2]
[408760290,1774203038515,-787.19213295,0.00012109,2]
[408760292,1774203038524,-500.0,0.00012192,2]
[408760294,1774203038533,-500.0,0.00012192,2]
[408760296,1774203038543,-500.0,0.00012192,2]
[408760298,1774203038551,-500.0,0.00012192,2]
[408760300,1774203038560,-500.0,0.00012192,2]
[408760302,1774203038569,-208.91268331,0.00012192,2]
[408760304,1774203038578,-500.0,0.00012192,2]
[408760306,1774203038587,-436.72155509,0.00012192,2]
[408760308,1774203038596,-500.0,0.00012192,2]
[408760310,1774203038605,-500.0,0.00012192,2]
[408760312,1774203038613,-508.94228123,0.00012192,2]
[408760314,1774203038622,-500.0,0.00012192,2]
[408760316,1774203038633,-500.0,0.00012192,2]
[408760318,1774203038643,-625.73608869,0.00012192,2]
[408760320,1774203038652,-500.0,0.00012192,2]
[408760321,1774203038661,-500.0,0.00012192,2]
[408760323,1774203038670,-500.0,0.00012192,2]
[408760325,1774203038679,-500.0,0.00012192,2]
[408760327,1774203038688,-500.0,0.00012192,2]
[408760329,1774203038697,-500.0,0.00012192,2]
[408760331,1774203038706,-500.0,0.00012192,2]
[408760333,1774203038715,-500.0,0.00012192,2]
[408760335,1774203038725,-500.0,0.00012192,2]
[408760337,1774203038734,-500.0,0.00012192,2]
[408760340,1774203038744,-500.0,0.00012192,2]
[408760342,1774203038753,-500.0,0.00012192,2]
[408760343,1774203038762,-500.0,0.00012192,2]
[408760345,1774203038772,-500.0,0.00012192,2]
[408760347,1774203038781,-500.0,0.00012192,2]
[408760349,1774203038790,-500.0,0.00012192,2]
[408760351,1774203038800,-382.17488402,0.00012192,2]
[408760354,1774203038809,-228.26946083,0.00012192,2]
[408760356,1774203038818,-500.0,0.00012192,2]
[408760357,1774203038828,-500.0,0.00012192,2]
[408760359,1774203038837,-500.0,0.00012192,2]
[408760360,1774203038847,-500.0,0.00012192,2]
[408760361,1774203038856,-500.0,0.00012192,2]
[408760363,1774203038865,-500.0,0.00012192,2]
[408760364,1774203038875,-500.0,0.00012192,2]
[408760365,1774203038884,-500.0,0.00012192,2]
[408760366,1774203038894,-500.0,0.00012192,2]
[408760367,1774203038903,-500.0,0.00012192,2]
[408760368,1774203038912,-500.0,0.00012192,2]
[408760369,1774203038921,-500.0,0.00012192,2]
[408760370,1774203038931,-500.0,0.00012192,2]
[408760371,1774203038940,-500.0,0.00012192,2]
[408760372,1774203038949,-500.0,0.00012192,2]
[408760373,1774203038958,-500.0,0.00012192,2]
[408760374,1774203038967,-500.0,0.00012192,2]
[408760375,1774203038977,-500.0,0.00012192,2]
[408760376,1774203038986,-500.0,0.00012193,2]
[408760377,1774203038995,-500.0,0.00012193,2]
[408760378,1774203039004,-260.81945878,0.00012193,2]
[408760379,1774203039013,-500.0,0.00012193,2]
[408760380,1774203039022,-500.0,0.00012193,2]
[408760381,1774203039031,-500.0,0.00012193,2]
[408760382,1774203039040,-369.41681077,0.00012193,2]
[408760383,1774203039050,-500.0,0.00012193,2]
[408760384,1774203039059,-500.0,0.00012193,2]
[408760385,1774203039068,-500.0,0.00012193,2]
[408760386,1774203039085,-500.0,0.00012193,2]
[408760387,1774203039094,-500.0,0.00012193,2]
[408760388,1774203039103,-500.0,0.00012193,2]
[408760389,1774203039112,-500.0,0.00012193,2]
[408760390,1774203039122,-500.0,0.00012193,2]
[408760391,1774203039132,-500.0,0.00012193,2]
[408760392,1774203039140,-574364.22137741,0.00012194,2]
[408760393,1774203039153,-60438.89654745,0.00012194,2]
[408760701,1774203043712,-2205.69252015,0.00012194,2]
[408760703,1774203043724,-4844.16448785,0.00012194,2]
[408760705,1774203043736,-8839.75889643,0.00012194,2]
[408760707,1774203043747,-10839.64487836,0.00012194,2]
[408760940,1774203046265,-1366116.75119663,0.00012194,2]
[408760941,1774203046275,-802349.29818619,0.00012209,2]
[408760943,1774203046284,-527.0,0.0001225,2]
[408760945,1774203046293,-720.0,0.00012294,2]
[408760947,1774203046302,-167.66237023,0.000123,2]
[408760949,1774203046311,-206.5617468,0.000123,2]
[408760951,1774203046320,-152.27013648,0.000123,2]
[408760953,1774203046332,-367.30498304,0.000124,2]
[408760955,1774203046341,-787.84269949,0.000124,2]
[408760957,1774203046351,-805.98056327,0.000124,2]
[408760988,1774203046630,-716.54641816,0.000124,2]
[408760991,1774203046649,-590.15063506,0.000129,2]
[408760993,1774203046659,-590.15063505,0.00013118,2]
[408760995,1774203046668,-864.0,0.00013523,2]
[408760997,1774203046677,-292.006,0.00013699,2]
[408760999,1774203046686,-1000.0,0.00013699,2]
[408761001,1774203046695,-1000.0,0.00013699,2]
[408761003,1774203046704,-787.19213293,0.00014419,2]
[408761005,1774203046714,-1000.0,0.00014875,2]
[408761007,1774203046723,-551.816423,0.00015,7]
[408761009,1774203046732,-590.15063505,0.0001516,2]
[408761011,1774203046741,-1000.0,0.00016363,2]
[408761013,1774203046750,-244.0,0.00016363,2]
[408761015,1774203046760,-1885.11,0.000165,2]
[408761017,1774203046769,-1958.53,0.00016511,2]
[408761019,1774203046778,-2107.69,0.00016533,2]
[408761021,1774203046786,-2310.93,0.00016563,2]
[408761023,1774203046795,-787.19213293,0.00016729,2]
[408761025,1774203046804,-859.13898091,0.00017181,16]
[408761027,1774203046813,-590.15063505,0.00017202,2]
[408761029,1774203046822,-209.60191532,0.00017445,17]
[408761031,1774203046831,-162.380719,0.00017931,2]
[408761033,1774203046840,-561.97701388,0.00017931,2]
[408761035,1774203046850,-342.65156911,0.00017931,2]
[408761037,1774203046860,-1000.0,0.00017999,2]
[408761039,1774203046869,-492.0,0.00017999,2]
[408761041,1774203046880,-788.0,0.000183,2]
[408761043,1774203046890,-283.01828531,0.00018479,2]
[408761045,1774203046899,-787.19213293,0.00019039,2]
[408761047,1774203046909,-500.0,0.00019178,2]
[408761049,1774203046918,-500.0,0.00019178,2]
[408761050,1774203046927,-500.0,0.00019178,2]
[408761051,1774203046941,-500.0,0.00019178,2]
[408761052,1774203046952,-500.0,0.00019178,2]
[408761053,1774203046961,-537.57214452,0.00019178,2]
[408761054,1774203046971,-500.0,0.00019178,2]
[408761055,1774203046984,-500.0,0.00019178,2]
[408761056,1774203046994,-500.0,0.00019178,2]
[408761057,1774203047003,-590.15063505,0.00019243,2]
[408761058,1774203047012,-208.525,0.00019726,2]
[408761059,1774203047022,-229.909,0.00019726,2]
[408761060,1774203047031,-361.656,0.00019726,2]
[408761061,1774203047041,-187.344,0.00019726,2]
[408761062,1774203047051,-438.0,0.00019726,2]
[408761063,1774203047061,-1000.0,0.00019799,2]
[408761064,1774203047071,-791.0,0.00019799,2]
[408761065,1774203047080,-163.56841515,0.00020609,2]
[408761066,1774203047090,-590.15063505,0.00021285,2]
[408761067,1774203047099,-787.19213293,0.00021349,2]
[408761068,1774203047108,-1000.0,0.00021779,10]
[408761069,1774203047120,-1000.0,0.00021779,10]
[408761070,1774203047130,-8777.91182869,0.0002185,3]
[408761071,1774203047140,-930.43526233,0.00021862,43]
[408761072,1774203047149,-5000.0,0.000219,7]
[408761073,1774203047159,-215.91791225,0.00022491,49]
[408761074,1774203047169,-254.0,0.0002272,2]
[408761075,1774203047179,-183.0,0.00022726,2]
[408761076,1774203047188,-438.0,0.00022726,2]
[408761077,1774203047197,-408.72629226,0.00022817,7]
[408761078,1774203047207,-160.0,0.00022903,3]
[408761079,1774203047216,-270.83333333,0.00023,2]
[408761080,1774203047226,-408.72629226,0.00023289,7]
[408761081,1774203047237,-590.15063505,0.00023327,2]
[408761082,1774203047246,-1160.0,0.00023399,10]
[408761083,1774203047256,-687.21807423,0.00023422,2]
[408761084,1774203047266,-408.72629226,0.00023636,7]
[408761085,1774203047277,-408.72629226,0.00023636,7]
[408761086,1774203047290,-787.19213293,0.0002366,2]
[408761087,1774203047300,-324.7093095,0.00023677,2]
[408761088,1774203047309,-11502.59161021,0.00023839,7]
[408761089,1774203047319,-38000.0,0.00023865,7]
[408761090,1774203047330,-165.425646,0.00023874,2]
[408761091,1774203047340,-162.014173,0.00023874,2]
[408761092,1774203047349,-1617.502518,0.00023874,2]
[408761093,1774203047359,-1617.502518,0.00023874,2]
[408761094,1774203047368,-1617.502518,0.00023874,2]
[408761095,1774203047379,-1617.502518,0.00023874,2]
[408761096,1774203047388,-38000.0,0.00023874,7]
[408761097,1774203047398,-38000.0,0.00023883,7]
[408761098,1774203047408,-1504.6365268,0.00023898,6]
[408761099,1774203047417,-500.0,0.00023938,9]
[408761100,1774203047427,-500.0,0.00023938,9]
[408761101,1774203047436,-1000.0,0.00023957,10]
[408761102,1774203047446,-1000.0,0.00023957,10]
[408761103,1774203047455,-579.0,0.00023957,10]
[408761104,1774203047464,-300.0,0.00024,7]
[408761105,1774203047474,-1249.0,0.00024,2]
[408761106,1774203047483,-270.83333333,0.00024,7]
[408761107,1774203047492,-417.05939059,0.00024083,2]
[408761108,1774203047501,-500.0,0.00024173,2]
[408761109,1774203047510,-500.0,0.00024173,2]
[408761110,1774203047520,-150.0,0.00024173,2]
[408761112,1774203047530,-300.0,0.00024173,2]
[408761114,1774203047539,-4073866.73765072,0.00024183,2]
[408761116,1774203047549,-151.0,0.00024183,2]
[408761118,1774203047559,-500.0,0.00024183,2]
[408761120,1774203047568,-500.0,0.00024183,2]
[408761122,1774203047577,-500.0,0.00024183,2]
[408761124,1774203047587,-500.0,0.00024183,2]
[408761126,1774203047596,-500.0,0.00024183,2]
[408761128,1774203047605,-500.0,0.00024183,2]
[408761130,1774203047614,-500.0,0.00024183,2]
[408761132,1774203047626,-500.0,0.00024183,2]
[408761134,1774203047636,-500.0,0.00024183,2]
[408761136,1774203047645,-500.0,0.00024183,2]
[408761138,1774203047655,-500.0,0.00024183,2]
[408761140,1774203047665,-500.0,0.00024183,2]
[408761142,1774203047675,-500.0,0.00024183,2]
[408761144,1774203047685,-500.0,0.00024183,2]
[408761146,1774203047694,-500.0,0.00024183,2]
[408761148,1774203047703,-500.0,0.00024183,2]
[408761150,1774203047713,-500.0,0.00024183,2]
[408761152,1774203047723,-500.0,0.00024183,2]
[408761154,1774203047733,-500.0,0.00024183,2]
[408761156,1774203047743,-500.0,0.00024183,2]
[408761158,1774203047752,-598.82372754,0.00024183,2]
[408761160,1774203047761,-1617.502518,0.00024183,2]
[408761162,1774203047771,-1617.502518,0.00024183,2]
[408761164,1774203047780,-1617.502518,0.00024183,2]
[408761166,1774203047789,-1617.502518,0.00024183,2]
[408761168,1774203047799,-250.0,0.000242,2]
[408761170,1774203047808,-250.0,0.000242,2]
[408761172,1774203047818,-250.0,0.000242,2]
[408761174,1774203047827,-250.0,0.000242,2]
[408761176,1774203047836,-250.0,0.000242,2]
[408761178,1774203047846,-250.0,0.000242,2]
[408761180,1774203047857,-250.0,0.000242,2]
[408761182,1774203047867,-250.0,0.000242,2]
[408761184,1774203047876,-241.8,0.000242,2]
[408761186,1774203047886,-748.0,0.00024241,2]
[408761188,1774203047895,-454.9097308,0.00024499,2]
[408761190,1774203047905,-1679.85,0.000245,2]
[408761192,1774203047914,-507.78,0.000245,2]
[408761194,1774203047923,-754.63,0.000245,2]
[408761196,1774203047933,-752.19,0.000245,2]
[408761198,1774203047943,-165.98329033,0.00024548,30]
[408761200,1774203047953,-160.0,0.00024615,4]
[408761203,1774203047962,-517.59548982,0.0002465,2]
[408761205,1774203047972,-1545.3669011,0.0002465,2]
[408761207,1774203047981,-160.0,0.00024658,2]
[408761209,1774203047991,-160.0,0.00024658,2]
[408761210,1774203048001,-160.0,0.00024658,2]
[408761213,1774203048011,-160.0,0.00024658,2]
[408761215,1774203048020,-160.0,0.00024658,2]
[408761217,1774203048030,-208.0324134,0.00024658,2]
[408761219,1774203048039,-200.0,0.00024658,2]
[408761221,1774203048048,-280.0,0.00024658,2]
[408761223,1774203048058,-500.0,0.00024658,2]
[408761225,1774203048068,-500.0,0.00024658,2]
[408761227,1774203048077,-500.0,0.00024658,2]
[408761229,1774203048088,-500.0,0.00024658,2]
[408761231,1774203048097,-500.0,0.00024658,2]
[408761233,1774203048107,-500.0,0.00024658,2]
[408761235,1774203048116,-500.0,0.00024658,2]
[408761237,1774203048125,-500.0,0.00024658,2]
[408761239,1774203048136,-236.13631144,0.00024659,120]
[408761241,1774203048145,-6762.12720714,0.0002466,120]
[408761243,1774203048154,-155.0,0.0002466,2]
[408761245,1774203048164,-1000.0,0.00024721,2]
[408761247,1774203048173,-1000.0,0.00024721,2]
[408761249,1774203048183,-250.0,0.00024721,2]
[408761251,1774203048193,-600.0,0.00024721,2]
[408761253,1774203048202,-490.29698368,0.000248,2]
[408761255,1774203048212,-165.98329033,0.00024822,30]
[408761257,1774203048222,-2315.0,0.000249,2]
[408761259,1774203048232,-302408.382085,0.000249,2]
[408761261,1774203048242,-1617.502518,0.000249,2]
[408761263,1774203048252,-1617.502518,0.000249,2]
[408761265,1774203048262,-1617.502518,0.000249,2]